fUSD/lending_fUSD_20250106
["ID","MTS","AMOUNT","RATE_DAILY","PERIOD"]
[347837395,1736146242116,-501.8193211,0.00010033,2]
[347837396,1736146242125,-501.86175476,0.00010033,2]
[347837397,1736146242135,-500.0,0.00010033,2]
[347837398,1736146242144,-500.0,0.00010033,2]
[347837399,1736146242153,-500.72478975,0.00010033,2]
[347837400,1736146242162,-500.52105268,0.00010033,2]
[347837401,1736146242171,-500.0,0.00010033,2]
[347837402,1736146242180,-500.0,0.00010033,2]
[347837403,1736146242189,-496.03928489,0.00010033,2]
[347837404,1736146242198,-500.0,0.00010033,2]
[347837405,1736146242208,-500.0,0.00010033,2]
[347837406,1736146242217,-500.0,0.00010033,2]
[347837407,1736146242226,-500.0,0.00010033,2]
[347837408,1736146242235,-500.8119209,0.00010033,2]
[347837409,1736146242244,-500.0,0.00010033,2]
[347837410,1736146242254,-500.0,0.00010033,2]
[347837411,1736146242263,-500.55308979,0.00010033,2]
[347837412,1736146242272,-1493.4,0.00010033,2]
[347837413,1736146242282,-500.98656812,0.00010033,2]
[347837414,1736146242291,-501.03585908,0.00010033,2]
[347837415,1736146242300,-501.71125236,0.00010033,2]
[347837416,1736146242309,-500.0,0.00010033,2]
[347837417,1736146242319,-503.09320382,0.00010033,2]
[347837418,1736146242329,-501.14792852,0.00010033,2]
[347837419,1736146242339,-500.0,0.00010033,2]
[347837420,1736146242348,-500.78555782,0.00010033,2]
[347837421,1736146242358,-502.22329701,0.00010033,2]
[347837422,1736146242368,-504.16928516,0.00010033,2]
[347837423,1736146242377,-501.72104265,0.00010033,2]
[347837424,1736146242387,-2244.15,0.00010033,2]
[347837425,1736146242396,-603.5429149,0.00010033,2]
[347837426,1736146242406,-501.07789821,0.00010033,2]
[347837427,1736146242415,-502.02814917,0.00010033,2]
[347837428,1736146242425,-500.0,0.00010033,2]
[347837429,1736146242434,-500.0,0.00010033,2]
[347837430,1736146242443,-500.49829762,0.00010033,2]
[347837431,1736146242454,-500.37222965,0.00010033,2]
[347837432,1736146242463,-500.83336607,0.00010033,2]
[347837433,1736146242472,-500.62307411,0.00010033,2]
[347837434,1736146242482,-500.59320966,0.00010033,2]
[347837435,1736146242491,-506.5,0.00010033,2]
[347837436,1736146242500,-500.0,0.00010033,2]
[347837437,1736146242510,-500.63555834,0.00010033,2]
[347837438,1736146242519,-632.11,0.00010033,2]
[347837439,1736146242529,-500.0,0.00010033,2]
[347837440,1736146242538,-500.0,0.00010033,2]
[347837441,1736146242547,-502.4195845,0.00010033,2]
[347837442,1736146242556,-500.0,0.00010033,2]
[347837443,1736146242566,-500.0,0.00010033,2]
[347837444,1736146242575,-500.0,0.00010033,2]
[347837445,1736146242584,-500.40893615,0.00010033,2]
[347837446,1736146242594,-500.32714515,0.00010033,2]
[347837447,1736146242603,-500.0,0.00010033,2]
[347837448,1736146242612,-501.8622855,0.00010033,2]
[347837449,1736146242622,-500.0,0.00010033,2]
[347837450,1736146242631,-501.29017768,0.00010033,2]
[347837451,1736146242640,-501.55820804,0.00010033,2]
[347837452,1736146242649,-500.43711958,0.00010033,2]
[347837453,1736146242658,-501.48089528,0.00010033,2]
[347837454,1736146242667,-500.0,0.00010033,2]
[347837455,1736146242676,-501.06486039,0.00010033,2]
[347837456,1736146242686,-501.85269262,0.00010033,2]
[347837457,1736146242695,-501.91431287,0.00010033,2]
[347837458,1736146242706,-1083.83,0.00010033,2]
[347837459,1736146242719,-502.40176421,0.00010033,2]
[347837460,1736146242732,-500.28128623,0.00010033,2]
[347837461,1736146242741,-508.30161474,0.00010033,2]
[347837462,1736146242750,-500.96580597,0.00010033,2]
[347837463,1736146242761,-500.27018052,0.00010033,2]
[347837464,1736146242771,-500.0,0.00010033,2]
[347837465,1736146242780,-1023.4,0.00010033,2]
[347837466,1736146242789,-314.29316386,0.00010033,2]
[347837467,1736146242799,-504.26840815,0.00010033,2]
[347837468,1736146242808,-508.71221817,0.00010033,2]
[347837469,1736146242817,-500.0,0.00010033,2]
[347837470,1736146242826,-500.72453981,0.00010033,2]
[347837471,1736146242835,-500.0,0.00010033,2]
[347837472,1736146242845,-609.99451729,0.00010033,2]
[347837473,1736146242854,-500.47844472,0.00010033,2]
[347837474,1736146242863,-500.0,0.00010033,2]
[347837475,1736146242873,-501.63746904,0.00010033,2]
[347837476,1736146242883,-500.98172357,0.00010033,2]
[347837477,1736146242891,-500.0,0.00010033,2]
[347837478,1736146242901,-500.0,0.00010033,2]
[347837479,1736146242910,-133893.0634,0.00010034,2]
[347837480,1736146242919,-430.28,0.00010034,2]
[347837481,1736146242928,-1933.95958532,0.00010123,2]
[347837482,1736146242937,-500.0,0.00010133,2]
[347837483,1736146242946,-1657.33,0.00010133,2]
[347837484,1736146242956,-704.79,0.00010133,2]
[347837485,1736146242965,-500.0,0.00010133,2]
[347837486,1736146242974,-500.0,0.00010134,2]
[347837487,1736146242983,-500.0,0.00010134,2]
[347837488,1736146242992,-500.0,0.00010134,2]
[347837490,1736146243002,-500.0,0.00010134,2]
[347837491,1736146243011,-1019.75,0.00010134,2]
[347837492,1736146243020,-500.0,0.00010134,2]
[347837493,1736146243029,-500.0,0.00010134,2]
[347837495,1736146243038,-500.0,0.00010134,2]
[347837496,1736146243048,-500.0,0.00010134,2]
[347837497,1736146243057,-500.0,0.00010134,2]
[347837498,1736146243066,-500.0,0.00010134,2]
[347837499,1736146243075,-500.0,0.00010134,2]
[347837500,1736146243084,-500.0,0.00010134,2]
[347837501,1736146243093,-500.0,0.00010134,2]
[347837502,1736146243103,-500.0,0.00010134,2]
[347837503,1736146243112,-500.0,0.00010134,2]
[347837504,1736146243121,-500.59373067,0.00010134,2]
[347837505,1736146243130,-500.0,0.00010134,2]
[347837506,1736146243140,-500.81623732,0.00010134,2]
[347837507,1736146243149,-500.0,0.00010134,2]
[347837508,1736146243158,-500.0,0.00010134,2]
[347837509,1736146243167,-500.0,0.00010134,2]
[347837510,1736146243176,-500.0,0.00010134,2]
[347837512,1736146243185,-1544.02,0.00010134,2]
[347837513,1736146243195,-500.0,0.00010134,2]
[347837514,1736146243204,-500.0,0.00010134,2]
[347837515,1736146243213,-500.0,0.00010134,2]
[347837516,1736146243222,-500.0,0.00010134,2]
[347837517,1736146243231,-500.0,0.00010134,2]
[347837518,1736146243240,-500.0,0.00010134,2]
[347837519,1736146243249,-500.0,0.00010134,2]
[347837520,1736146243258,-500.0,0.00010134,2]
[347837521,1736146243267,-500.0,0.00010134,2]
[347837522,1736146243277,-500.0,0.00010134,2]
[347837523,1736146243286,-500.0,0.00010134,2]
[347837524,1736146243295,-500.0,0.00010134,2]
[347837525,1736146243303,-500.0,0.00010134,2]
[347837526,1736146243313,-500.0,0.00010134,2]
[347837527,1736146243322,-500.0,0.00010134,2]
[347837528,1736146243331,-500.0,0.00010134,2]
[347837529,1736146243341,-500.0,0.00010134,2]
[347837530,1736146243351,-500.0,0.00010134,2]
[347837531,1736146243361,-500.0,0.00010134,2]
[347837550,1736146243538,-500.0,0.00010134,2]
[347837552,1736146243548,-500.0,0.00010134,2]
[347837554,1736146243558,-500.0,0.00010134,2]
[347837556,1736146243567,-754.58,0.00010134,2]
[347837558,1736146243576,-500.0,0.00010134,2]
[347837561,1736146243586,-500.0,0.00010134,2]
[347837562,1736146243595,-500.0,0.00010134,2]
[347837565,1736146243605,-502.59534447,0.00010134,2]
[347837566,1736146243614,-500.0,0.00010134,2]
[347837569,1736146243624,-500.0,0.00010134,2]
[347837571,1736146243633,-500.0,0.00010134,2]
[347837573,1736146243642,-500.0,0.00010134,2]
[347837575,1736146243652,-500.0,0.00010134,2]
[347837577,1736146243661,-500.0,0.00010134,2]
[347837579,1736146243670,-500.0,0.00010134,2]
[347837581,1736146243679,-500.0,0.00010134,2]
[347837583,1736146243689,-500.77997156,0.00010134,2]
[347837585,1736146243698,-500.0,0.00010134,2]
[347837587,1736146243708,-500.0,0.00010134,2]
[347837588,1736146243718,-500.0,0.00010134,2]
[347837590,1736146243727,-500.0,0.00010134,2]
[347837592,1736146243736,-500.0,0.00010134,2]
[347837595,1736146243745,-500.0,0.00010134,2]
[347837597,1736146243755,-836.56,0.00010134,2]
[347837599,1736146243768,-500.0,0.00010134,2]
[347837600,1736146243778,-500.0,0.00010134,2]
[347837602,1736146243787,-500.0,0.00010134,2]
[347837604,1736146243796,-1621.684072,0.00010134,2]
[347837606,1736146243807,-500.0,0.00010134,2]
[347837608,1736146243816,-500.0,0.00010134,2]
[347837610,1736146243826,-500.0,0.00010134,2]
[347837613,1736146243835,-504.80682926,0.00010134,2]
[347837614,1736146243845,-157.403562,0.00010134,2]
[347837617,1736146243854,-500.0,0.00010134,2]
[347837618,1736146243864,-500.0,0.00010134,2]
[347837621,1736146243873,-500.0,0.00010134,2]
[347837623,1736146243882,-500.0,0.00010134,2]
[347837625,1736146243892,-500.0,0.00010134,2]
[347837627,1736146243901,-500.0,0.00010134,2]
[347837629,1736146243910,-156.428393,0.00010134,2]
[347837631,1736146243919,-500.0,0.00010134,2]
[347837633,1736146243928,-500.0,0.00010134,2]
[347837635,1736146243938,-500.0,0.00010134,2]
[347837637,1736146243947,-500.0,0.00010134,2]
[347837638,1736146243956,-500.79998703,0.00010134,2]
[347837641,1736146243965,-511.05766318,0.00010134,2]
[347837643,1736146243975,-500.63345698,0.00010134,2]
[347837645,1736146243986,-501.73458316,0.00010134,2]
[347837647,1736146243995,-500.87946102,0.00010134,2]
[347837649,1736146244004,-502.4,0.00010134,2]
[347837651,1736146244014,-500.0,0.00010134,2]
[347837653,1736146244023,-500.25034454,0.00010134,2]
[347837655,1736146244032,-2716.93,0.00010134,2]
[347837657,1736146244042,-500.0,0.00010134,2]
[347837659,1736146244051,-579.52258512,0.00010134,2]
[347837661,1736146244060,-1758.16002,0.00010134,2]
[347837663,1736146244070,-500.0,0.00010134,2]
[347837665,1736146244079,-500.0,0.00010134,2]
[347837667,1736146244088,-500.0,0.00010134,2]
[347837669,1736146244098,-500.0,0.00010134,2]
[347837671,1736146244107,-500.0,0.00010134,2]
[347837673,1736146244116,-500.96976411,0.00010134,2]
[347837675,1736146244125,-729.04,0.00010134,2]
[347837677,1736146244135,-500.0,0.00010134,2]
[347837679,1736146244144,-157.85127417,0.00010134,2]
[347837681,1736146244153,-581.14434668,0.00010134,2]
[347837683,1736146244163,-500.73195537,0.00010134,2]
[347837685,1736146244172,-500.31136701,0.00010134,2]
[347837687,1736146244181,-500.0,0.00010134,2]
[347837689,1736146244191,-500.4963551,0.00010134,2]
[347837691,1736146244200,-500.0,0.00010134,2]
[347837693,1736146244210,-500.0,0.00010134,2]
[347837695,1736146244219,-500.0,0.00010134,2]
[347837697,1736146244228,-500.37377024,0.00010134,2]
[347837699,1736146244237,-500.63742357,0.00010134,2]
[347837701,1736146244246,-500.0,0.00010134,2]
[347837703,1736146244256,-500.85628751,0.00010134,2]
[347837705,1736146244265,-500.0,0.00010134,2]
[347837707,1736146244275,-500.0,0.00010134,2]
[347837709,1736146244284,-509.36,0.00010134,2]
[347837711,1736146244294,-500.84308073,0.00010134,2]
[347837713,1736146244303,-500.0,0.00010134,2]
[347837715,1736146244312,-500.70196505,0.00010134,2]
[347837717,1736146244321,-500.0,0.00010134,2]
[347837719,1736146244331,-500.0,0.00010134,2]
[347837721,1736146244340,-500.0,0.00010134,2]
[347837723,1736146244350,-500.37152738,0.00010134,2]
[347837725,1736146244361,-500.0,0.00010134,2]
[347837726,1736146244370,-500.0,0.00010134,2]
[347837727,1736146244379,-500.0,0.00010134,2]
[347837728,1736146244389,-500.0,0.00010134,2]
[347837729,1736146244399,-500.0,0.00010134,2]
[347837730,1736146244408,-500.0,0.00010134,2]
[347837731,1736146244417,-500.0,0.00010134,2]
[347837732,1736146244426,-500.0,0.00010134,2]
[347837733,1736146244436,-499.99779869,0.00010134,2]
[347837735,1736146244445,-500.7308483,0.00010134,2]
[347837737,1736146244454,-502.27052209,0.00010134,2]
[347837738,1736146244464,-500.61787739,0.00010134,2]
[347837739,1736146244473,-500.0,0.00010134,2]
[347837740,1736146244483,-500.0,0.00010134,2]
[347837741,1736146244493,-500.81693741,0.00010134,2]
[347837742,1736146244502,-500.0,0.00010134,2]
[347837743,1736146244512,-500.0,0.00010134,2]
[347837744,1736146244521,-500.83393922,0.00010134,2]
[347837745,1736146244531,-556.19178722,0.00010134,2]
[347837746,1736146244540,-500.0,0.00010134,2]
[347837747,1736146244550,-500.0,0.00010134,2]
[347837748,1736146244559,-503.49774816,0.00010134,2]
[347837749,1736146244568,-500.0,0.00010134,2]
[347837750,1736146244578,-501.07076863,0.00010134,2]
[347837751,1736146244587,-349.60721936,0.00010134,2]
[347837752,1736146244597,-500.0,0.00010134,2]
[347837753,1736146244606,-503.57027241,0.00010134,2]
[347837754,1736146244616,-500.0,0.00010134,2]
[347837755,1736146244627,-500.0,0.00010134,2]
[347837756,1736146244636,-500.0,0.00010134,2]
[347837757,1736146244645,-500.67721626,0.00010134,2]
[347837759,1736146244655,-500.29787587,0.00010134,2]
[347837760,1736146244664,-501.35445546,0.00010134,2]
[347837761,1736146244674,-501.03109747,0.00010134,2]
[347837762,1736146244683,-500.0,0.00010134,2]
[347837763,1736146244692,-500.0,0.00010134,2]
[347837764,1736146244702,-500.0,0.00010134,2]
[347837765,1736146244711,-500.49234578,0.00010134,2]
[347837766,1736146244720,-500.0,0.00010134,2]
[347837767,1736146244730,-1369.64,0.00010134,2]
[347837768,1736146244739,-500.0,0.00010134,2]
[347837769,1736146244749,-500.0,0.00010134,2]
[347837770,1736146244759,-500.0,0.00010134,2]
[347837771,1736146244769,-500.0,0.00010134,2]
[347837772,1736146244780,-501.08004424,0.00010134,2]
[347837773,1736146244789,-500.0,0.00010134,2]
[347837774,1736146244799,-603.27459231,0.00010134,2]
[347837775,1736146244809,-500.0,0.00010134,2]
[347837776,1736146244818,-500.0,0.00010134,2]
[347837777,1736146244828,-501.1752285,0.00010134,2]
[347837778,1736146244839,-500.0,0.00010134,2]
[347837779,1736146244849,-500.0,0.00010134,2]
[347837780,1736146244858,-500.0,0.00010134,2]
[347837781,1736146244868,-501.55440883,0.00010134,2]
[347837782,1736146244877,-610.1089224,0.00010134,2]
[347837783,1736146244886,-500.0,0.00010134,2]
[347837784,1736146244895,-2225.72,0.00010134,2]
[347837785,1736146244905,-500.47567859,0.00010134,2]
[347837786,1736146244914,-1238.2,0.00010134,2]
[347837787,1736146244924,-500.51745302,0.00010134,2]
[347837788,1736146244933,-500.0,0.00010134,2]
[347837789,1736146244943,-500.0,0.00010134,2]
[347837790,1736146244952,-499.2803885,0.00010134,2]
[347837791,1736146244964,-500.20044793,0.00010134,2]
[347837792,1736146244973,-500.0,0.00010134,2]
[347837793,1736146244983,-500.73898549,0.00010134,2]
[347837794,1736146244992,-500.39228216,0.00010134,2]
[347837795,1736146245001,-500.71960789,0.00010134,2]
[347837796,1736146245011,-500.26783216,0.00010134,2]
[347837797,1736146245020,-561.09,0.00010134,2]
[347837798,1736146245031,-500.62176611,0.00010134,2]
[347837799,1736146245041,-500.5940752,0.00010134,2]
[347837800,1736146245050,-845.21,0.00010134,2]
[347837801,1736146245060,-2383.62,0.00010134,2]
[347837802,1736146245070,-500.0,0.00010134,2]
[347837803,1736146245080,-500.83474581,0.00010134,2]
[347837804,1736146245090,-500.0,0.00010134,2]
[347837805,1736146245100,-500.8980088,0.00010134,2]
[347837806,1736146245110,-500.0,0.00010134,2]
[347837807,1736146245119,-500.0,0.00010134,2]
[347837808,1736146245129,-500.21325606,0.00010134,2]
[347837809,1736146245138,-500.0,0.00010134,2]
[347837810,1736146245148,-500.0,0.00010134,2]
[347837811,1736146245157,-500.0,0.00010134,2]
[347837812,1736146245167,-502.22281947,0.00010134,2]
[347837813,1736146245177,-556.23,0.00010134,2]
[347837814,1736146245186,-500.44683849,0.00010134,2]
[347837815,1736146245196,-500.20933967,0.00010134,2]
[347837816,1736146245205,-500.0,0.00010134,2]
[347837817,1736146245215,-500.0,0.00010134,2]
[347837818,1736146245224,-500.0,0.00010134,2]
[347837819,1736146245233,-5872.59,0.00010134,2]
[347837820,1736146245243,-500.0,0.00010134,2]
[347837821,1736146245253,-501.2031698,0.00010134,2]
[347837822,1736146245262,-589.06,0.00010134,2]
[347837823,1736146245272,-534.26311102,0.00010134,2]
[347837824,1736146245282,-500.55794347,0.00010134,2]
[347837825,1736146245291,-500.0,0.00010134,2]
[347837826,1736146245301,-673.64,0.00010134,2]
[347837827,1736146245311,-500.0,0.00010134,2]
[347837828,1736146245320,-500.0,0.00010134,2]
[347837829,1736146245330,-500.0,0.00010134,2]
[347837830,1736146245340,-500.0,0.00010134,2]
[347837831,1736146245350,-500.0,0.00010134,2]
[347837832,1736146245359,-500.0,0.00010134,2]
[347837833,1736146245369,-500.0,0.00010134,2]
[347837834,1736146245379,-500.0,0.00010134,2]
[347837835,1736146245390,-500.0,0.00010134,2]
[347837836,1736146245400,-500.0,0.00010134,2]
[347837837,1736146245410,-500.0,0.00010134,2]
[347837838,1736146245420,-500.0,0.00010134,2]
[347837839,1736146245430,-500.0,0.00010134,2]
[347837840,1736146245440,-500.0,0.00010134,2]
[347837841,1736146245450,-500.0,0.00010134,2]
[347837842,1736146245460,-500.0,0.00010134,2]
[347837843,1736146245470,-500.0,0.00010134,2]
[347837844,1736146245480,-500.0,0.00010134,2]
[347837845,1736146245490,-500.0,0.00010134,2]
[347837846,1736146245500,-500.0,0.00010134,2]
[347837847,1736146245509,-500.0,0.00010134,2]
[347837848,1736146245518,-2620.63,0.00010134,2]
[347837849,1736146245528,-515.0,0.00010134,2]
[347837850,1736146245539,-1465.5,0.00010134,2]
[347837851,1736146245549,-500.0,0.00010134,2]
[347837852,1736146245558,-500.46353589,0.00010134,2]
[347837853,1736146245568,-500.0,0.00010134,2]
[347837854,1736146245578,-500.0,0.00010134,2]
[347837855,1736146245588,-500.0,0.00010134,2]
[347837856,1736146245597,-502.62,0.00010134,2]
[347837857,1736146245606,-500.0,0.00010134,2]
[347837858,1736146245615,-2213.07,0.00010134,2]
[347837859,1736146245624,-500.0,0.00010134,2]
[347837860,1736146245634,-230.51063603,0.00010134,2]
[347837861,1736146245643,-885.5,0.00010134,2]
[347837862,1736146245652,-500.0,0.00010134,2]
[347837863,1736146245662,-500.0,0.00010134,2]
[347837864,1736146245671,-500.0,0.00010134,2]
[347837865,1736146245681,-500.0,0.00010134,2]
[347837866,1736146245690,-2813.28,0.00010134,2]
[347837867,1736146245699,-3079.1,0.00010134,2]
[347837868,1736146245710,-500.0,0.00010134,2]
[347837869,1736146245719,-500.0,0.00010134,2]
[347837870,1736146245729,-500.0,0.00010134,2]
[347837871,1736146245738,-1353.21,0.00010134,2]
[347837872,1736146245747,-500.78446986,0.00010134,2]
[347837873,1736146245757,-501.60327089,0.00010134,2]
[347837874,1736146245768,-500.0,0.00010134,2]
[347837875,1736146245778,-500.89400238,0.00010134,2]
[347837876,1736146245788,-500.0,0.00010134,2]
[347837877,1736146245797,-500.58859942,0.00010134,2]
[347837878,1736146245806,-444.08128443,0.00010134,2]
[347837879,1736146245816,-500.0,0.00010134,2]
[347837880,1736146245825,-500.53065654,0.00010134,2]
[347837881,1736146245835,-500.0,0.00010134,2]
[347837882,1736146245844,-500.37884033,0.00010134,2]
[347837883,1736146245899,-500.0,0.00010134,2]
[347837884,1736146245908,-500.565385,0.00010134,2]
[347837885,1736146245917,-500.62792667,0.00010134,2]
[347837886,1736146245927,-500.0,0.00010134,2]
[347837887,1736146245935,-500.49552679,0.00010134,2]
[347837888,1736146245944,-501.04769171,0.00010134,2]
[347837889,1736146245953,-500.0,0.00010134,2]
[347837890,1736146245962,-950.57,0.00010134,2]
[347837892,1736146245971,-500.73003907,0.00010134,2]
[347837893,1736146245980,-614.5,0.00010134,2]
[347837895,1736146245990,-500.0,0.00010134,2]
[347837897,1736146245999,-500.0,0.00010134,2]
[347837898,1736146246008,-632.43177483,0.00010134,2]
[347837899,1736146246017,-500.41805174,0.00010134,2]
[347837900,1736146246026,-500.0,0.00010134,2]
[347837901,1736146246035,-500.0,0.00010134,2]
[347837902,1736146246044,-500.0,0.00010134,2]
[347837903,1736146246053,-500.0,0.00010134,2]
[347837904,1736146246062,-503.35326117,0.00010134,2]
[347837905,1736146246071,-377.49607271,0.00010134,2]
[347837906,1736146246080,-502.71056819,0.00010134,2]
[347837907,1736146246089,-500.0,0.00010134,2]
[347837908,1736146246098,-500.0,0.00010134,2]
[347837909,1736146246107,-589.55,0.00010134,2]
[347837910,1736146246116,-500.0,0.00010134,2]
[347837911,1736146246125,-503.16101319,0.00010134,2]
[347837912,1736146246134,-639.77766984,0.00010135,2]
[347837913,1736146246143,-198.1377128,0.00010135,2]
[347837914,1736146246152,-500.74433136,0.00010135,2]
[347837915,1736146246161,-501.29034013,0.00010135,2]
[347837916,1736146246170,-500.21047694,0.00010135,2]
[347837917,1736146246179,-502.02745025,0.00010135,2]
[347837918,1736146246188,-206.82460446,0.00010135,2]
[347837919,1736146246198,-501.51318868,0.00010135,2]
[347837920,1736146246207,-209.32613346,0.00010135,2]
[347837921,1736146246215,-500.0,0.00010135,2]
[347837922,1736146246225,-500.32822298,0.00010135,2]
[347837923,1736146246234,-500.257082,0.00010135,2]
[347837924,1736146246243,-502.51519698,0.00010135,2]
[347837925,1736146246252,-500.37172481,0.00010135,2]
[347837926,1736146246262,-500.72644301,0.00010135,2]
[347837927,1736146246271,-501.07533022,0.00010135,2]
[347837928,1736146246283,-500.30620408,0.00010135,2]
[347837929,1736146246292,-501.59316523,0.00010135,2]
[347837930,1736146246301,-500.14936281,0.00010135,2]
[347837931,1736146246311,-501.01508982,0.00010135,2]
[347837932,1736146246320,-500.36510096,0.00010135,2]
[347837933,1736146246329,-501.44627831,0.00010135,2]
[347837934,1736146246338,-500.85118675,0.00010135,2]
[347837935,1736146246347,-500.5644761,0.00010135,2]
[347837936,1736146246357,-500.29979608,0.00010135,2]
[347837937,1736146246366,-501.27553358,0.00010135,2]
[347837938,1736146246375,-501.01775014,0.00010135,2]
[347837939,1736146246384,-500.0,0.00010135,2]
[347837940,1736146246393,-501.43018725,0.00010135,2]
[347837941,1736146246402,-501.14802374,0.00010135,2]
[347837942,1736146246412,-501.23911497,0.00010135,2]
[347837943,1736146246421,-501.9637127,0.00010135,2]
[347837944,1736146246431,-500.0,0.00010135,2]
[347837945,1736146246440,-500.52804526,0.00010135,2]
[347837946,1736146246449,-500.34828826,0.00010135,2]
[347837947,1736146246459,-501.58090245,0.00010135,2]
[347837948,1736146246468,-502.50652851,0.00010135,2]
[347837949,1736146246477,-500.46047113,0.00010135,2]
[347837950,1736146246486,-301.07909621,0.00010135,2]
[347837951,1736146246495,-501.05522114,0.00010135,2]
[347837952,1736146246504,-500.0,0.00010135,2]
[347837953,1736146246513,-501.3566895,0.00010135,2]
[347837954,1736146246523,-500.0,0.00010135,2]
[347837955,1736146246533,-501.37703828,0.00010135,2]
[347837956,1736146246542,-501.87592485,0.00010135,2]
[347837957,1736146246551,-501.75134445,0.00010135,2]
[347837958,1736146246560,-502.41280236,0.00010135,2]
[347837959,1736146246569,-500.19162035,0.00010135,2]
[347837960,1736146246578,-500.0,0.00010135,2]
[347837961,1736146246587,-615.9562974,0.00010135,2]
[347837962,1736146246596,-501.44665161,0.00010135,2]
[347837963,1736146246606,-500.18905261,0.00010135,2]
[347837965,1736146246615,-500.63332312,0.00010135,2]
[347837967,1736146246624,-500.42309002,0.00010135,2]
[347837969,1736146246634,-500.98351725,0.00010135,2]
[347837971,1736146246643,-521.65396962,0.00010135,2]
[347837973,1736146246652,-500.7658084,0.00010135,2]
[347837974,1736146246661,-179.59984139,0.00010135,2]
[347837975,1736146246674,-501.36197372,0.00010135,2]
[347837976,1736146246683,-501.46041328,0.00010135,2]
[347837977,1736146246692,-501.4143904,0.00010135,2]
[347837978,1736146246701,-501.06796644,0.00010135,2]
[347837979,1736146246711,-500.11776366,0.00010135,2]
[347837980,1736146246720,-500.16872142,0.00010135,2]
[347837981,1736146246729,-518.16501288,0.00010135,2]
[347837982,1736146246738,-500.39155412,0.00010135,2]
[347837983,1736146246747,-500.23640063,0.00010135,2]
[347837984,1736146246756,-500.22321548,0.00010135,2]
[347837985,1736146246769,-500.51915607,0.00010135,2]
[347837986,1736146246779,-500.0,0.00010135,2]
[347837987,1736146246789,-252.5779488,0.00010135,2]
[347837988,1736146246799,-1000.0,0.00010135,2]
[347837989,1736146246808,-500.42748816,0.00010135,2]
[347837990,1736146246818,-500.34222467,0.00010135,2]
[347837991,1736146246827,-501.26729216,0.00010135,2]
[347837992,1736146246836,-1036.35,0.00010135,2]
[347837993,1736146246846,-1081.26,0.00010135,2]
[347837994,1736146246855,-2048.23,0.00010135,2]
[347837995,1736146246864,-1278.88,0.00010135,2]
[347837996,1736146246873,-644.36,0.00010135,2]
[347837997,1736146246882,-1260.55,0.00010135,2]
[347837998,1736146246891,-731.83,0.00010135,2]
[347837999,1736146246900,-1340.36,0.00010135,2]
[347838000,1736146246909,-500.0,0.00010135,2]
[347838001,1736146246918,-1187.99,0.00010135,2]
[347838002,1736146246927,-2277.14,0.00010135,2]
[347838003,1736146246936,-1121.46,0.00010135,2]
[347838004,1736146246946,-815.01,0.00010135,2]
[347838005,1736146246955,-500.0,0.00010136,2]
[347838006,1736146246963,-500.0,0.00010136,2]
[347838007,1736146246973,-500.0,0.00010136,2]
[347838008,1736146246982,-500.0,0.00010136,2]
[347838009,1736146246991,-500.0,0.00010136,2]
[347838010,1736146247000,-500.0,0.00010136,2]
[347838011,1736146247009,-501.43448271,0.00010136,2]
[347838012,1736146247018,-500.0,0.00010136,2]
[347838013,1736146247027,-500.0,0.00010136,2]
[347838014,1736146247037,-500.0,0.00010136,2]